fUSD/lending_fUSD_20240212
["ID","MTS","AMOUNT","RATE_DAILY","PERIOD"]
[313863534,1707756637169,-500.0,0.00026588,2]
[313863535,1707756637179,-500.0,0.00026588,2]
[313863536,1707756637188,-500.0,0.00026589,2]
[313863537,1707756637198,-183.15,0.00026682,2]
[313863539,1707756637207,-509.83,0.00026858,2]
[313863540,1707756637216,-500.0,0.00026858,2]
[313863541,1707756637226,-560.69,0.00026858,2]
[313863542,1707756637235,-500.0,0.00026858,2]
[313863543,1707756637244,-500.0,0.00026858,2]
[313863544,1707756637253,-500.0,0.00026858,2]
[313863545,1707756637262,-500.0,0.00026858,2]
[313863546,1707756637271,-500.0,0.00026858,2]
[313863548,1707756637281,-500.0,0.00026858,2]
[313863549,1707756637293,-839.8,0.00026858,2]
[313863551,1707756637302,-500.0,0.00026858,2]
[313863552,1707756637312,-531.62,0.00026859,2]
[313863553,1707756637322,-749.46,0.00026859,2]
[313863554,1707756637331,-500.0,0.00026859,2]
[313863555,1707756637340,-500.0,0.00026859,2]
[313863556,1707756637350,-500.0,0.00026859,2]
[313863557,1707756637360,-500.0,0.00026859,2]
[313863558,1707756637369,-500.0,0.00026859,2]
[313863559,1707756637378,-563.09,0.00026859,2]
[313863560,1707756637387,-5035.82,0.00026859,2]
[313863561,1707756637397,-500.0,0.00026859,2]
[313863562,1707756637407,-500.0,0.00026862,2]
[313863563,1707756637418,-500.0,0.00026862,2]
[313863564,1707756637429,-500.0,0.00026862,2]
[313863565,1707756637438,-500.0,0.00026862,2]
[313863566,1707756637448,-593.76492035,0.00026862,2]
[313863567,1707756637457,-597.64,0.00026862,2]
[313863568,1707756637466,-500.0,0.00026862,2]
[313863569,1707756637476,-500.0,0.00026862,2]
[313863570,1707756637486,-500.0,0.00026863,2]
[313863571,1707756637495,-1300.0,0.00027,3]
[313863572,1707756637505,-599.27979208,0.00027121,2]
[313863573,1707756637515,-496.6617654,0.00027121,2]
[313863574,1707756637524,-509.83,0.00027132,2]
[313863575,1707756637535,-272.92,0.00027132,2]
[313863576,1707756637545,-500.0,0.00027132,2]
[313863577,1707756637554,-500.0,0.00027132,2]
[313863578,1707756637563,-500.0,0.00027132,2]
[313863579,1707756637573,-500.0,0.00027132,2]
[313863580,1707756637583,-500.0,0.00027132,2]
[313863581,1707756637592,-500.0,0.00027132,2]
[313863582,1707756637602,-839.8,0.00027132,2]
[313863583,1707756637611,-500.0,0.00027132,2]
[313863584,1707756637620,-531.62,0.00027133,2]
[313863585,1707756637630,-749.46,0.00027133,2]
[313863586,1707756637640,-500.0,0.00027133,2]
[313863587,1707756637649,-220.1151681,0.00027133,2]
[313863588,1707756637659,-500.0,0.00027133,2]
[313863589,1707756637669,-500.0,0.00027133,2]
[313863590,1707756637678,-500.0,0.00027133,2]
[313863591,1707756637687,-563.09,0.00027133,2]
[313863592,1707756637696,-5035.82,0.00027133,2]
[313863593,1707756637706,-615.56,0.00027133,2]
[313863594,1707756637715,-500.0,0.00027136,2]
[313863595,1707756637725,-500.0,0.00027136,2]
[313863596,1707756637734,-500.0,0.00027136,2]
[313863597,1707756637743,-347.74219236,0.00027136,2]
[313863598,1707756637753,-597.64,0.00027136,2]
[313863599,1707756637763,-500.0,0.00027136,2]
[313863600,1707756637772,-500.0,0.00027136,2]
[313863601,1707756637782,-500.0,0.00027137,2]
[313863602,1707756637793,-1099.65095283,0.0002736,2]
[313863603,1707756637803,-1917.04998468,0.00027383,2]
[313863604,1707756637812,-216.47782378,0.00027396,2]
[313863605,1707756637821,-2097.29,0.00027397,2]
[313863607,1707756637831,-1787.49,0.00027397,10]
[313863609,1707756637840,-1489.57,0.00027397,10]
[313863611,1707756637849,-1241.31,0.00027397,10]
[313863613,1707756637858,-1034.43,0.00027397,10]
[313863615,1707756637868,-1762.95263917,0.000274,2]
[313863617,1707756637877,-937.83,0.000274,2]
[313863619,1707756637886,-509.83,0.00027406,2]
[313863621,1707756637895,-500.0,0.00027406,2]
[313863623,1707756637904,-500.0,0.00027406,2]
[313863625,1707756637913,-500.0,0.00027406,2]
[313863627,1707756637923,-500.0,0.00027406,2]
[313863629,1707756637932,-500.0,0.00027406,2]
[313863631,1707756637942,-500.0,0.00027406,2]
[313863633,1707756637951,-839.8,0.00027406,2]
[313863635,1707756637960,-500.0,0.00027406,2]
[313863636,1707756637969,-531.62,0.00027407,2]
[313863637,1707756637978,-749.46,0.00027407,2]
[313863638,1707756637987,-500.0,0.00027407,2]
[313863639,1707756637996,-500.0,0.00027407,2]
[313863640,1707756638005,-500.0,0.00027407,2]
[313863641,1707756638014,-500.0,0.00027407,2]
[313863642,1707756638024,-563.09,0.00027407,2]
[313863643,1707756638033,-5035.82,0.00027407,2]
[313863644,1707756638043,-329.04,0.0002741,2]
[313863645,1707756638052,-500.0,0.0002741,2]
[313863646,1707756638061,-242.44,0.0002741,2]
[313863647,1707756638070,-597.64,0.0002741,2]
[313863648,1707756638079,-624.6,0.0002741,2]
[313863650,1707756638089,-500.0,0.0002741,2]
[313863652,1707756638098,-213.44,0.00027411,2]
[313863654,1707756638107,-155.0,0.000275,2]
[313863656,1707756638116,-2097.29,0.00027556,2]
[313863658,1707756638125,-509.83,0.0002768,2]
[313863660,1707756638134,-500.0,0.0002768,2]
[313863662,1707756638143,-500.0,0.0002768,2]
[313863664,1707756638152,-500.0,0.0002768,2]
[313863666,1707756638162,-500.0,0.0002768,2]
[313863667,1707756638171,-500.0,0.0002768,2]
[313863668,1707756638180,-628.13927708,0.0002768,2]
[313863669,1707756638189,-839.8,0.0002768,2]
[313863670,1707756638198,-500.0,0.0002768,2]
[313863671,1707756638209,-531.62,0.00027681,2]
[313863672,1707756638218,-749.46,0.00027681,2]
[313863673,1707756638227,-500.0,0.00027681,2]
[313863674,1707756638236,-500.0,0.00027681,2]
[313863675,1707756638246,-500.0,0.00027681,2]
[313863676,1707756638255,-500.0,0.00027681,2]
[313863677,1707756638264,-563.09,0.00027681,2]
[313863678,1707756638274,-5035.82,0.00027681,2]
[313863679,1707756638283,-500.0,0.00027684,2]
[313863680,1707756638292,-597.64,0.00027684,2]
[313863681,1707756638302,-500.0,0.00027684,2]
[313863682,1707756638311,-2097.29,0.00027714,2]
[313863683,1707756638321,-150.0,0.00027741,2]
[313863684,1707756638330,-2097.29,0.00027872,2]
[313863685,1707756638340,-925.0,0.000279,2]
[313863686,1707756638349,-183.15,0.00027953,2]
[313863687,1707756638359,-509.83,0.00027954,2]
[313863688,1707756638369,-500.0,0.00027954,2]
[313863689,1707756638378,-500.0,0.00027954,2]
[313863690,1707756638388,-500.0,0.00027954,2]
[313863691,1707756638633,-500.0,0.00027954,2]
[313863692,1707756638645,-486.8324584,0.00027954,2]
[313863693,1707756638655,-839.8,0.00027954,2]
[313863694,1707756638665,-500.0,0.00027954,2]
[313863695,1707756638675,-531.62,0.00027955,2]
[313863696,1707756638684,-749.46,0.00027955,2]
[313863697,1707756638693,-500.0,0.00027955,2]
[313863698,1707756638703,-500.0,0.00027955,2]
[313863699,1707756638712,-500.0,0.00027955,2]
[313863700,1707756638721,-500.0,0.00027955,2]
[313863701,1707756638731,-563.09,0.00027955,2]
[313863702,1707756638741,-5035.82,0.00027955,2]
[313863703,1707756638754,-500.0,0.00027958,2]
[313863704,1707756638764,-597.64,0.00027958,2]
[313863705,1707756638773,-500.0,0.00027958,2]
[313863706,1707756638782,-12872.04133576,0.00028,2]
[313863707,1707756638795,-692.60049049,0.00028,2]
[313863708,1707756638804,-200.0,0.00028,2]
[313863709,1707756638814,-2097.29,0.0002803,2]
[313863710,1707756638823,-2097.29,0.00028189,2]
[313863711,1707756638832,-732.28,0.00028197,2]
[313863712,1707756638842,-509.83,0.00028228,2]
[313863713,1707756638851,-500.0,0.00028228,2]
[313863714,1707756638861,-500.0,0.00028228,2]
[313863715,1707756638870,-500.0,0.00028228,2]
[313863716,1707756638879,-500.0,0.00028228,2]
[313863717,1707756638889,-839.8,0.00028228,2]
[313863718,1707756638898,-319.89,0.00028228,2]
[313863719,1707756638908,-531.62,0.00028229,2]
[313863720,1707756638917,-749.46,0.00028229,2]
[313863721,1707756638927,-500.0,0.00028229,2]
[313863722,1707756638936,-500.0,0.00028229,2]
[313863723,1707756638946,-500.0,0.00028229,2]
[313863724,1707756638955,-563.09,0.00028229,2]
[313863725,1707756638965,-5035.82,0.00028229,2]
[313863726,1707756638975,-500.0,0.00028232,2]
[313863727,1707756638985,-597.64,0.00028232,2]
[313863728,1707756638994,-277.22,0.00028232,2]
[313863729,1707756639004,-279.64,0.00028283,2]
[313863730,1707756639013,-185.61,0.00028327,2]
[313863731,1707756639022,-2097.29,0.00028347,2]
[313863732,1707756639031,-509.83,0.00028502,2]
[313863733,1707756639042,-437.26,0.00028502,2]
[313863734,1707756639051,-500.0,0.00028502,2]
[313863735,1707756639061,-500.0,0.00028502,2]
[313863736,1707756639070,-500.0,0.00028502,2]
[313863737,1707756639080,-839.8,0.00028502,2]
[313863738,1707756639089,-531.62,0.00028503,2]
[313863739,1707756639099,-749.46,0.00028503,2]
[313863740,1707756639109,-500.0,0.00028503,2]
[313863741,1707756639118,-500.0,0.00028503,2]
[313863742,1707756639128,-500.0,0.00028503,2]
[313863743,1707756639137,-563.09,0.00028503,2]
[313863744,1707756639146,-5035.82,0.00028503,2]
[313863745,1707756639156,-2097.29,0.00028505,2]
[313863746,1707756639165,-500.0,0.00028506,2]
[313863747,1707756639174,-597.64,0.00028506,2]
[313863748,1707756639184,-200.0,0.00028573,2]
[313863749,1707756639194,-2097.29,0.00028664,2]
[313863750,1707756639203,-165.54,0.00028732,2]
[313863751,1707756639213,-509.83,0.00028776,2]
[313863752,1707756639222,-500.0,0.00028776,2]
[313863753,1707756639232,-500.0,0.00028776,2]
[313863754,1707756639241,-500.0,0.00028776,2]
[313863755,1707756639250,-839.8,0.00028776,2]
[313863756,1707756639260,-531.62,0.00028777,2]
[313863757,1707756639270,-749.46,0.00028777,2]
[313863758,1707756639279,-215.30640042,0.00028777,2]
[313863759,1707756639290,-308.1,0.00028777,2]
[313863760,1707756639300,-500.0,0.00028777,2]
[313863761,1707756639308,-563.09,0.00028777,2]
[313863762,1707756639319,-5035.82,0.00028777,2]
[313863763,1707756639328,-500.0,0.0002878,2]
[313863764,1707756639339,-597.64,0.0002878,2]
[313863765,1707756639349,-727.46,0.00028781,2]
[313863766,1707756639358,-2097.29,0.00028822,2]
[313863767,1707756639368,-151.0,0.00028824,120]
[313863768,1707756639377,-7999.99,0.00028889,6]
[313863769,1707756639387,-710.8,0.00028889,2]
[313863770,1707756639397,-153.40579228,0.000289,2]
[313863771,1707756639406,-171.21009078,0.000289,20]
[313863772,1707756639416,-1917.04998468,0.00028928,2]
[313863773,1707756639425,-200000.0,0.00029,2]
[313863774,1707756639435,-250.0,0.00029,2]
[313863775,1707756639444,-150.0,0.00029,2]
[313863776,1707756639454,-150.0,0.00029,2]
[313863777,1707756639464,-1350.0,0.00029,3]
[313863778,1707756639473,-509.83,0.0002905,2]
[313863779,1707756639484,-636.6,0.0002905,2]
[313863780,1707756639493,-500.0,0.0002905,2]
[313863781,1707756639503,-490.22733813,0.0002905,2]
[313863782,1707756639515,-839.8,0.0002905,2]
[313863783,1707756639524,-531.62,0.00029051,2]
[313863784,1707756639533,-749.46,0.00029051,2]
[313863785,1707756639543,-535.52999999,0.00029051,2]
[313863786,1707756639553,-563.09,0.00029051,2]
[313863787,1707756639562,-5035.82,0.00029051,2]
[313863788,1707756639571,-500.0,0.00029053,2]
[313863789,1707756639580,-597.64,0.00029053,2]
[313863790,1707756639590,-289.2,0.00029058,2]
[313863791,1707756639599,-156.299999,0.000292,2]
[313863792,1707756639609,-183.15,0.00029223,2]
[313863793,1707756639618,-509.83,0.00029324,2]
[313863794,1707756639628,-500.0,0.00029324,2]
[313863795,1707756639637,-839.8,0.00029324,2]
[313863796,1707756639647,-531.6845283,0.00029325,2]
[313863797,1707756639657,-749.46,0.00029325,2]
[313863798,1707756639666,-563.09,0.00029325,2]
[313863799,1707756639675,-5035.83021682,0.00029325,2]
[313863800,1707756639685,-376.38,0.00029327,2]
[313863801,1707756639694,-597.64,0.00029327,2]
[313863802,1707756639704,-151.0,0.00029412,30]
[313863803,1707756639713,-228.3964544,0.000295,3]
[313863804,1707756639722,-1231.0,0.00029575,2]
[313863805,1707756639732,-216.0,0.00029575,2]
[313863806,1707756639743,-1253.0,0.00029575,2]
[313863807,1707756639756,-2528.732,0.00029575,2]
[313863808,1707756639766,-150.0,0.00029586,2]
[313863809,1707756639775,-150.0,0.00029588,2]
[313863810,1707756639785,-509.83,0.00029598,2]
[313863811,1707756639798,-615.31469611,0.00029598,2]
[313863812,1707756639808,-839.8,0.00029598,2]
[313863813,1707756639817,-749.46,0.00029599,2]
[313863815,1707756639827,-563.09,0.00029599,2]
[313863816,1707756639837,-597.64,0.00029601,2]
[313863817,1707756639846,-150.0,0.00029606,2]
[313863818,1707756639857,-1353.14586447,0.00029606,2]
[313863819,1707756639867,-500.0,0.00029611,2]
[313863820,1707756639876,-200.0,0.00029611,2]
[313863821,1707756639885,-800.0,0.00029611,2]
[313863823,1707756639895,-150.0,0.00029614,2]
[313863824,1707756639905,-150.0,0.00029614,2]
[313863825,1707756639915,-150.0,0.00029615,2]
[313863826,1707756639925,-150.0,0.0002964,2]
[313863827,1707756639934,-200.0,0.000297,2]
[313863828,1707756639944,-150.0,0.00029701,2]
[313863829,1707756639953,-800.0,0.0002971,2]
[313863830,1707756639962,-150.0,0.00029711,2]
[313863831,1707756639972,-150.0,0.00029721,2]
[313863833,1707756639981,-150.0,0.00029745,2]
[313863834,1707756639991,-2000.0,0.0002975,3]
[313863835,1707756640000,-7018.28434681,0.0002975,2]
[313863836,1707756640010,-150.0,0.00029756,2]
[313863837,1707756640020,-150.0,0.00029756,2]
[313863838,1707756640029,-200.0,0.00029759,2]
[313863839,1707756640039,-800.0,0.00029759,2]
[313863840,1707756640049,-150.0,0.00029763,2]
[313863841,1707756640059,-150.0,0.00029796,2]
[313863842,1707756640069,-150.0,0.00029798,2]
[313863843,1707756640078,-176.48526302,0.000298,2]
[313863844,1707756640088,-1388904.277361,0.000298,2]
[313863845,1707756640097,-346.0,0.000298,2]
[313863846,1707756640107,-1000.0,0.000298,2]
[313863847,1707756640117,-150.0,0.00029809,2]
[313863848,1707756640126,-150.0,0.00029818,2]
[313863849,1707756640136,-150.0,0.0002983,2]
[313863850,1707756640145,-150.0,0.00029833,2]
[313863851,1707756640155,-500.0,0.00029839,2]
[313863852,1707756640165,-732.28,0.00029841,2]
[313863853,1707756640175,-1065.29930835,0.00029845,2]
[313863854,1707756640185,-201.65714872,0.00029845,2]
[313863855,1707756640195,-700.31980649,0.00029846,2]
[313863856,1707756640204,-16192.27258273,0.00029847,2]
[313863857,1707756640214,-231.97189338,0.00029847,2]
[313863858,1707756640223,-55762.05379455,0.00029847,2]
[313863859,1707756640233,-190.93828834,0.00029847,2]
[313863860,1707756640242,-155.28377308,0.00029847,2]
[313863861,1707756640252,-282.70188833,0.00029847,2]
[313863862,1707756640261,-4610.83472506,0.00029847,2]
[313863863,1707756640270,-285.20730063,0.00029847,2]
[313863864,1707756640280,-216.60567526,0.00029847,2]
[313863865,1707756640290,-536.69233643,0.00029848,2]
[313863866,1707756640300,-343.1154288,0.00029848,2]
[313863867,1707756640309,-16292.36251666,0.00029849,2]
[313863868,1707756640318,-2000.0,0.0002985,2]
[313863869,1707756640327,-200.0,0.0002985,2]
[313863870,1707756640338,-500.0,0.0002985,2]
[313863871,1707756640347,-500.0,0.0002985,2]
[313863872,1707756640357,-500.0,0.0002985,2]
[313863873,1707756640367,-285.5504,0.0002985,2]
[313863874,1707756640377,-1000.0,0.0002985,2]
[313863875,1707756640386,-1000.0,0.0002985,2]
[313863876,1707756640397,-1000.0,0.0002985,2]
[313863877,1707756640406,-1000.0,0.0002985,2]
[313863878,1707756640416,-1000.0,0.0002985,2]
[313863879,1707756640425,-1000.0,0.0002985,2]
[313863880,1707756640435,-1000.0,0.0002985,2]
[313863881,1707756640444,-1000.0,0.0002985,2]
[313863882,1707756640453,-1000.0,0.0002985,2]
[313863883,1707756640463,-407.76311984,0.0002985,2]
[313863884,1707756640715,-592.23688016,0.0002985,2]
[313863885,1707756640724,-1000.0,0.0002985,2]
[313863886,1707756640735,-1000.0,0.0002985,2]
[313863887,1707756640744,-1000.0,0.0002985,2]
[313863888,1707756640761,-1000.0,0.0002985,2]
[313863889,1707756640770,-1000.0,0.0002985,2]
[313863890,1707756640780,-1000.0,0.0002985,2]
[313863891,1707756640790,-1000.0,0.0002985,2]
[313863892,1707756640799,-1000.0,0.0002985,2]
[313863893,1707756640808,-1000.0,0.0002985,2]
[313863894,1707756640818,-1000.0,0.0002985,2]
[313863895,1707756640827,-1000.0,0.0002985,2]
[313863896,1707756640837,-1000.0,0.0002985,2]
[313863897,1707756640847,-1000.0,0.0002985,2]
[313863898,1707756640856,-1000.0,0.0002985,2]
[313863899,1707756640866,-1000.0,0.0002985,2]
[313863900,1707756640875,-1000.0,0.0002985,2]
[313863901,1707756640938,-1000.0,0.0002985,2]
[313863902,1707756640947,-1000.0,0.0002985,2]
[313863903,1707756640956,-1000.0,0.0002985,2]
[313863904,1707756640966,-1000.0,0.0002985,2]
[313863905,1707756640975,-1000.0,0.0002985,2]
[313863906,1707756640984,-1000.0,0.0002985,2]
[313863907,1707756640993,-1106.419,0.0002985,2]
[313863908,1707756641002,-500.0,0.0002985,2]
[313863909,1707756641012,-500.0,0.0002985,2]
[313863910,1707756641021,-500.0,0.0002985,2]
[313863911,1707756641031,-500.0,0.0002985,2]
[313863912,1707756641042,-500.0,0.0002985,2]
[313863913,1707756641051,-500.0,0.0002985,2]
[313863914,1707756641061,-500.0,0.0002985,2]
[313863915,1707756641070,-551.7121,0.0002985,2]
[313863916,1707756641078,-156.0,0.0002985,5]
[313863917,1707756641087,-509.83,0.00029872,2]
[313863918,1707756641097,-839.8,0.00029872,2]
[313863919,1707756641106,-749.46,0.00029873,2]
[313863920,1707756641115,-563.09,0.00029873,2]
[313863921,1707756641124,-597.64,0.00029875,2]
[313863922,1707756641133,-186.02813876,0.00029896,2]
[313863923,1707756641142,-153.40579228,0.00029993,2]
[313863924,1707756641151,-591.46153739,0.00029997,2]
[313863925,1707756641160,-3314.16939965,0.00029999,2]
[313863926,1707756641169,-431.7534371,0.00029999,2]
[313863927,1707756641178,-13810.99371465,0.00029999,2]
[313863928,1707756641202,-3979.35,0.00029999,2]
[313863943,1707756641657,-206.0,0.00026732,2]
[313863945,1707756641667,-206.0,0.00028012,4]
[313863946,1707756641676,-206.0,0.00029291,6]
[313863948,1707756641685,-1253.43237019,0.00029999,2]
[313863951,1707756641697,-19258.23229754,0.00029999,2]
[313863953,1707756641708,-910.035438,0.00029999,2]
[313863955,1707756641719,-35774.71633572,0.00029999,2]
[313863957,1707756641728,-8589.3178478,0.00029999,2]
[313863959,1707756641737,-25311.50457,0.00029999,2]
[313863961,1707756641746,-193998.9844629,0.00029999,2]
[313863963,1707756641755,-88887.0649936,0.00029999,2]
[313863965,1707756641764,-50000.0,0.0003,2]
[313863967,1707756641777,-19148.63208535,0.0003,4]
[313863969,1707756641790,-911.20722036,0.0003,4]
[313863971,1707756641800,-155.0,0.0003,2]
[313863973,1707756641810,-155.0,0.0003,2]
[313863975,1707756641819,-1972.76022435,0.0003,4]
[313863977,1707756641829,-360.06771643,0.0003,2]
[313863979,1707756641839,-178.00257215,0.0003,4]
[313863981,1707756641850,-1176.20171541,0.0003,4]
[313863982,1707756641861,-271.93532452,0.0003,4]
[313863984,1707756641871,-155.0,0.0003,4]
[313863987,1707756641882,-6381.22919046,0.0003,2]
[313863989,1707756641893,-1817.46566731,0.0003,4]
[313863991,1707756641904,-2655.70887327,0.0003,4]
[313863993,1707756641914,-7177.05513271,0.0003,5]
[313863995,1707756641923,-814.67910339,0.0003,4]
[313863997,1707756641933,-118942.0,0.0003,2]
[313863999,1707756641943,-300.0,0.0003,31]
[313864001,1707756641953,-650.12345678,0.0003,2]
[313864002,1707756641962,-716.29052443,0.0003,3]
[313864004,1707756641971,-150.0,0.0003,2]
[313864006,1707756641981,-200.0,0.0003,2]
[313864008,1707756641991,-3000.0,0.0003,2]
[313864011,1707756642000,-153.79,0.0003,2]
[313864013,1707756642010,-153.79,0.0003,2]
[313864015,1707756642019,-153.79,0.0003,2]
[313864017,1707756642028,-153.79,0.0003,2]
[313864018,1707756642040,-153.79,0.0003,2]
[313864021,1707756642050,-153.79,0.0003,2]
[313864023,1707756642059,-205.0,0.0003,2]
[313864025,1707756642069,-1500.0,0.0003,2]
[313864026,1707756642078,-1000.0,0.0003,2]
[313864029,1707756642088,-1000.0,0.0003,2]
[313864030,1707756642098,-1000.0,0.0003,2]
[313864032,1707756642107,-3000.0,0.0003,2]
[313864035,1707756642117,-3000.0,0.0003,2]
[313864037,1707756642126,-3000.0,0.0003001,2]
[313864038,1707756642135,-151.0,0.00030013,7]
[313864040,1707756642145,-5472.481679,0.0003002,2]
[313864043,1707756642155,-500.0,0.00030066,2]
[313864044,1707756642164,-200.0,0.00030066,2]
[313864046,1707756642174,-152.0,0.00030081,2]
[313864048,1707756642185,-354.0,0.00030081,2]
[313864050,1707756642194,-2000.0,0.000301,2]
[313864052,1707756642204,-500.0,0.00030136,20]
[313864054,1707756642214,-500.0,0.00030136,20]
[313864056,1707756642224,-500.0,0.00030136,20]
[313864059,1707756642233,-500.0,0.00030136,20]
[313864060,1707756642242,-500.0,0.00030136,20]
[313864062,1707756642251,-150.0,0.00030137,2]
[313864064,1707756642261,-509.83,0.00030146,2]
[313864066,1707756642271,-839.8,0.00030146,2]
[313864069,1707756642280,-563.09,0.00030147,2]
[313864072,1707756642293,-200.0,0.00030148,2]
[313864075,1707756642301,-597.64,0.00030149,2]
[313864077,1707756642311,-17504.0,0.000302,3]
[313864080,1707756642320,-200.0,0.000302,2]
[313864083,1707756642329,-500.0,0.00030294,2]
[313864086,1707756642338,-150.0,0.00030378,2]
[313864090,1707756642347,-1353.14586447,0.00030381,2]
[313864092,1707756642356,-17504.0,0.000304,5]
[313864094,1707756642365,-7018.28434674,0.000304,2]
[313864096,1707756642375,-509.83,0.0003042,2]
[313864099,1707756642385,-839.8,0.0003042,2]
[313864102,1707756642395,-563.09,0.00030421,2]
[313864103,1707756642404,-597.64,0.00030423,2]
[313864105,1707756642413,-200.0,0.0003045,2]
[313864106,1707756642423,-1917.04998468,0.00030473,2]
[313864107,1707756642432,-183.15,0.00030494,2]
[313864108,1707756642441,-500.0,0.00030521,2]
[313864109,1707756642451,-200.0,0.00030521,2]
[313864110,1707756642461,-279.64,0.00030547,2]
[313864111,1707756642470,-206.0,0.00030571,8]
[313864112,1707756642479,-3000.0,0.000306,2]
[313864113,1707756642488,-151.0,0.00030625,4]
[313864114,1707756642498,-509.83,0.00030694,2]
[313864115,1707756642507,-839.8,0.00030694,2]
[313864116,1707756642516,-563.09,0.00030695,2]
[313864117,1707756642525,-597.64,0.00030697,2]
[313864118,1707756642534,-200.0,0.000307,3]
[313864119,1707756642546,-925.40170052,0.000307,2]
[313864120,1707756642555,-150.0,0.0003093,2]
[313864121,1707756642564,-509.83,0.00030968,2]
[313864122,1707756642573,-839.8,0.00030968,2]
[313864123,1707756642582,-563.22673073,0.00030969,2]
[313864124,1707756642592,-597.81,0.00030971,2]
[313864125,1707756642602,-1021.88,0.0003098,120]
[313864126,1707756642611,-154.27376162,0.00030999,2]
[313864127,1707756642621,-159.08364953,0.00030999,2]
[313864128,1707756642630,-50000.0,0.00031,2]
[313864129,1707756642639,-258.00607391,0.00031,4]
[313864130,1707756642648,-642.08889258,0.00031,7]
[313864131,1707756642658,-20000.0,0.00031,2]
[313864132,1707756642667,-10000.0,0.00031,4]
[313864133,1707756642676,-600.0,0.00031,32]
[313864134,1707756642686,-1400.0,0.00031,3]
[313864135,1707756642695,-177.24,0.00031,2]
[313864136,1707756642704,-185.61,0.00031044,2]
[313864137,1707756642713,-500.0,0.00031044,2]
[313864138,1707756642722,-7018.28434674,0.0003105,2]
[313864140,1707756642731,-153.40579228,0.00031085,2]
[313864142,1707756642741,-2500.0,0.00031111,2]
[313864144,1707756642752,-200.0,0.000312,3]
[313864147,1707756642761,-3000.0,0.0003122,2]
[313864148,1707756642771,-509.83,0.00031242,2]
[313864150,1707756642780,-839.8,0.00031242,2]
[313864152,1707756642792,-151.0,0.0003125,2]
[313864155,1707756642801,-501.74982381,0.00031378,2]
[313864157,1707756642811,-150.0,0.00031378,2]
[313864158,1707756642821,-1000.0,0.000314,2]
[313864160,1707756642830,-1000.0,0.000314,2]
[313864162,1707756642840,-1000.0,0.000314,2]
[313864164,1707756642850,-732.28,0.00031485,2]
[313864166,1707756642859,-510.00873602,0.00031516,2]
[313864168,1707756642869,-839.88085193,0.00031516,2]
[313864170,1707756642879,-177.24,0.00031548,2]
[313864172,1707756642888,-500.0,0.00031567,2]
[313864174,1707756642897,-200.0,0.00031567,2]
[313864176,1707756642907,-180.0,0.00031644,2]
[313864178,1707756642916,-167.25,0.00031644,2]
[313864180,1707756642925,-152.0,0.00031661,3]
[313864182,1707756642935,-200.0,0.000317,4]
[313864184,1707756642945,-7018.28434674,0.000317,3]
[313864186,1707756642955,-368.2170969,0.000317,2]